Cogmind - Beta 16 --- EXPLORER MODE // 2025.12.23 @ 19:50:32 Player: viper Result: Destroyed self with Subdweller Shrapnel Launcher Performance ------------- Evolutions (0) 0 Regions Visited (2) 400 Robots Destroyed (6) 30 Value Destroyed (216) 216 Prototype IDs (0) 0 Alien Tech Used (0) 0 Bonus (0) 0 TOTAL SCORE: 646 Bonus ------- None Cogmind --------- Core Integrity 0/250 Matter 142/300 Energy 275/275 System Corruption 1% Temperature Cool (6) Movement Core (450) Ox8 Location -10/Subcaves Parts ------- > --- POWER (2) -------- Ion Engine Light Ion Engine > --- PROPULSION (2) --- (None) > --- UTILITY (2) ------ Medium Storage Unit Targeting Computer > --- WEAPON (2) ------- Subdweller Shrapnel Launcher > --- INVENTORY (10) --- Subdweller Power Source Weapon Shielding EM Pulse Gun Medium Laser Subdweller Laser Subdweller Machine Gun Peak State ------------ > --- POWER ------------ Ion Engine Light Ion Engine > --- PROPULSION ------- Aluminum Leg Aluminum Leg > --- UTILITY ---------- Medium Storage Unit Targeting Computer > --- WEAPON ----------- Medium Laser Assault Rifle > --- INVENTORY -------- Subdweller Power Source Weapon Shielding EM Pulse Gun Subdweller Laser Subdweller Machine Gun Subdweller Shrapnel Launcher [Rating: 9] Favorites ----------- Power Ion Engine Engine Ion Engine Propulsion Aluminum Leg Leg Aluminum Leg Utility Medium Storage Unit Storage Medium Storage Unit Processor Targeting Computer Weapon Assault Rifle Energy Gun Medium Laser Ballistic Gun Assault Rifle Launcher Subdweller Shrapnel Launcher Build | -11 -10 -10 ------- Run | Yrd Mat Sub Slots Evolved 1 | . 1 . Power 1 | . 1 . Propulsion . | . . . Utility . | . . . Weapon . | . . . Parts Attached 9 | 7 1 1 Power 2 | 1 1 . Engine 2 | 1 1 . Core . | . . . Reactor . | . . . Propulsion 2 | 2 . . Treads . | . . . Leg 2 | 2 . . Wheel . | . . . Hover . | . . . Flight . | . . . Utility 2 | 2 . . Device . | . . . Storage 1 | 1 . . Processor 1 | 1 . . Hackware . | . . . Protection . | . . . Artifact . | . . . Weapon 3 | 2 . 1 Energy Gun 1 | 1 . . Energy Cannon . | . . . Ballistic Gun 1 | 1 . . Ballistic Cannon . | . . . Launcher 1 | . . 1 Special Weapon . | . . . Impact Weapon . | . . . Slashing Weapon . | . . . Piercing Weapon . | . . . Special Melee Weapon . | . . . Unidentified Prototypes . | . . . Parts Lost 3 | . . 3 Power . | . . . Propulsion 2 | . . 2 Utility . | . . . Weapon 1 | . . 1 Highest Loss Streak 2 | . . 2 To Critical Strikes . | . . . Average Backups 4 | 1 2 4 Power . | . . . Propulsion . | . . . Utility . | . 1 1 Weapon 2 | . 1 3 Tool/Special . | . . . Unused Backups 5 | . . 5 Power 1 | . . 1 Propulsion . | . . . Utility 1 | . . 1 Weapon 3 | . . 3 Tool/Special . | . . . Average Slot Usage (%) 98 | . 100 98 Engine 25 | . 25 25 Leg 23 | . 25 23 Storage 12 | . 12 12 Processor 12 | . 12 12 Energy Gun 8 | . 12 7 Ballistic Gun 11 | . 12 11 Launcher 3 | . . 4 Peak Build Rating 9 | 7 8 9 Average Rating 8 | 5 8 8 On Entrance 5 | . 7 8 Avg Prop Armor Cover (%) . | . . . Naked Turns . | . . . Heaviest Build 28 | 19 22 28 Greatest Support 20 | 20 20 20 Greatest Overweight (x) 2 | . 1 2 Average Overweight (x) 1 | . 1 1 Largest Inventory Capacity 10 | 10 10 10 Average Capacity 9 | 8 10 10 Most Carried 6 | 3 2 6 Average Carried 4 | 1 2 4 Final Capacity 10 | 10 10 10 Final Carried 6 | 3 2 6 Class Distribution -------------------- 100% | Hacker-Mutant Dominant Class ---------------- Hacker-Mutant | -10/Materials Hacker-Mutant | -10/Subcaves Resources | -11 -10 -10 ----------- Run | Yrd Mat Sub Matter Collected 431 | 244 39 148 Remotely . | . . . Salvage Created 245 | . 29 216 Parts 13 | . 2 11 Haulers Intercepted . | . . . Recyclers Shooed . | . . . Parts Field Recycled . | . . . Retrieved Matter . | . . . Parts Self-Destructed . | . . . Prevented . | . . . Parts Restored . | . . . Kills | -11 -10 -10 ------- Run | Yrd Mat Sub Combat Hostiles Destroyed 5 | . . 5 Guns 4 | . . 4 AOE 1 | . . 1 Classes Destroyed 2 | . 1 1 Watcher 1 | . 1 . Subdweller 5 | . . 5 Best Kill Streak 2 | . 1 2 Combat Bots Only 2 | . . 2 Max Kills in Single Turn 1 | . 1 1 Gunslinging . | . . . Exploded 1 | . . 1 Melee . | . . . Uniques/NPCs Destroyed . | . . . Combat | -11 -10 -10 -------- Run | Yrd Mat Sub Hostile Shots Fired 47 | . . 47 Missed 15 | . . 15 Hits 32 | . . 32 Projectile 32 | . . 32 Damage Taken 713 | . . 713 Core 257 | . . 257 Absorbed by Shields . | . . . Ignored by Resistances 426 | . . 426 Core Remaining (%) 100 | 100 . . Volleys Fired 35 | . 1 34 Largest 2 | . 2 2 Hottest 70 | . 70 70 Shots Fired 60 | . 2 58 Gun 50 | . 2 48 Cannon . | . . . Launcher 10 | . . 10 Special . | . . . Kinetic 35 | . 1 34 Thermal 25 | . 1 24 Explosive . | . . . Electromagnetic . | . . . Robot Hit Streak 23 | . 1 23 Robot Miss Streak 1 | . . 1 Penetration Max . | . . . Secondary Targets 1 | . . 1 Max Gunslinging Chain 1 | . . 1 Shots Hit Robots 48 | . 1 47 Core Hits 14 | . 1 13 Critical Kills . | . . . Critical Parts Destroyed . | . . . Critical Strikes 3 | . . 3 Burn 3 | . . 3 Melee Attacks . | . . . Impact . | . . . Slashing . | . . . Piercing . | . . . Sneak Attacks . | . . . Combat Hostiles . | . . . Follow-up Attacks . | . . . Damage Inflicted 824 | . 17 807 Guns 579 | . 13 566 Cannons . | . . . Explosions 241 | . . 241 Melee . | . . . Ramming 4 | . 4 . Kinetic 506 | . . 506 Thermal 314 | . 13 301 Explosive . | . . . Electromagnetic . | . . . Impact . | . . . Slashing . | . . . Piercing . | . . . Highest Corruption 1 | . 1 1 Average Corruption 1 | . 1 1 Corruption Purged . | . . . Corruption Blocked . | . . . Effects 12 | . 2 10 Matter Fused 6 | . . 6 Heat Flow Errors 1 | . . 1 Energy Discharges 3 | . 1 2 Data Loss (minor) 1 | . . 1 Data Loss (major) 1 | . 1 . Overload Shots . | . . . Overflow Damage 14 | . . 14 Projectiles . | . . . Explosions 14 | . . 14 Melee . | . . . Knockbacks . | . . . Impact . | . . . Kinetic . | . . . Secondary . | . . . Self-Inflicted Damage 328 | . . 328 Shots 10 | . . 10 Rammed . | . . . Targets Rammed 2 | . 2 . Kicked 2 | . 2 . Crushed . | . . . Highest Temperature 78 | . 24 78 Average Temperature 27 | . 14 45 Received Heat Transfer 96 | . . 96 Siege Activations . | . . . Martial Activations . | . . . Shielding Activations . | . . . Robots Disrupted . | . . . Combat Hostiles . | . . . Robots Corrupted . | . . . Combat Hostiles . | . . . Parts Fried . | . . . Impact Corruptions . | . . . Robots Melted . | . . . Combat Hostiles . | . . . Parts Melted 1 | . . 1 Heat Transferred 1147 | . 37 1110 Parts Sabotaged . | . . . Parts Stolen . | . . . Parts Stripped . | . . . Power Chain Reactions . | . . . Alert | -11 -10 -10 ------- Run | Yrd Mat Sub Maximum Alert Level . | . . . Low Security (%) 100 | 100 100 . Level 1 . | . . . Level 2 . | . . . Level 3 . | . . . Level 4 . | . . . Level 5 . | . . . High Security . | . . . Max Security . | . . . Peak Influence 7 | . 7 . Initial . | . . . Average . | . . . Influence Increases 7 | . 7 . Destroy 0b10 Robot/NC 5 | . 5 . Destroy Leader 2 | . 2 . Influence Decreases 7 | . 7 . Time Decay 7 | . 7 . Squads Dispatched . | . . . Investigation . | . . . Extermination . | . . . Reinforcement . | . . . Assault . | . . . Garrison . | . . . Intercept . | . . . Searches Triggered . | . . . Construction Impeded . | . . . Haulers Reinforced . | . . . Active Scanning Responses . | . . . Cargo Convoy Interrupts . | . . . Stealth | -11 -10 -10 --------- Run | Yrd Mat Sub Distress Signals . | . . . Communications Jammed . | . . . Distress Signals . | . . . Times Spotted 11 | . 1 10 Peak Tracking Total 4 | . 1 4 Tactical Retreats . | . . . Traps | -11 -10 -10 ------- Run | Yrd Mat Sub Traps Triggered . | . . . Indirectly . | . . . Trap Hack Attempts . | . . . Triggered . | . . . Disarmed . | . . . Reprogrammed . | . . . Reused . | . . . Traps Extracted . | . . . Installed . | . . . Triggered . | . . . Machines | -11 -10 -10 ---------- Run | Yrd Mat Sub Machines Disabled . | . . . Max in Single Turn . | . . . Machines Repaired . | . . . Machines Dismantled . | . . . Machines Sabotaged . | . . . Overloaded Fab Kills . | . . . Hacking | -11 -10 -10 --------- Run | Yrd Mat Sub Machines Accessed 1 | . 1 . Terminals 1 | . 1 . Fabricators . | . . . Repair Stations . | . . . Recycling Units . | . . . Scanalyzers . | . . . Garrison Access . | . . . Total Hacks 7 | . 7 . Successful 3 | . 3 . Failed 4 | . 4 . Catastrophic . | . . . Database Lockouts . | . . . Manual . | . . . Terminals 7 | . 7 . Fabricators . | . . . Repair Stations . | . . . Recycling Units . | . . . Scanalyzers . | . . . Garrison Access . | . . . Terminal Hacks 3 | . 3 . Record 3 | . 3 . Fabricator Hacks . | . . . Repair Station Hacks . | . . . Recycling Unit Hacks . | . . . Scanalyzer . | . . . Garrison Access Hacks . | . . . Unauthorized Hacks . | . . . Terminals . | . . . Fabricators . | . . . Repair Stations . | . . . Recycling Units . | . . . Scanalyzers . | . . . Garrison Access . | . . . Data Cores Recovered . | . . . Used . | . . . Hacking Detections 1 | . 1 . Full Trace Events 1 | . 1 . Feedback Events 1 | . 1 . Corruption 1 | . 1 . Feedback Blocked . | . . . Robot Schematics Acquired . | . . . Robots Built . | . . . Authchips . | . . . Time . | . . . Total Robot Build Rating . | . . . Part Schematics Acquired . | . . . Parts Built . | . . . Authchips . | . . . Time . | . . . Total Part Build Rating . | . . . Part Studies Acquired . | . . . Parts Repaired . | . . . Time . | . . . Parts Recycled . | . . . Recycled Matter . | . . . Retrieved Matter . | . . . Retrieved Components . | . . . Parts Scanalyzed . | . . . Part Schematics Acquired . | . . . Parts Damaged . | . . . Bothacking | -11 -10 -10 ------------ Run | Yrd Mat Sub Used RIF Installer . | . . . Robots Hacked . | . . . Non-combat . | . . . Combat . | . . . Robot Hacks Applied . | . . . Relay Couplers Released . | . . . Fabnet Peak Effective % . | . . . Robots Rewired . | . . . Allies Hacked . | . . . Hacks Repelled . | . . . Allies | -11 -10 -10 -------- Run | Yrd Mat Sub Total Allies . | . . . Largest Group . | . . . Highest-Rated Group . | . . . Highest-Rated Ally . | . . . Total Orders . | . . . Ally Attacks . | . . . Total Damage . | . . . Kills . | . . . Allies Corrupted . | . . . Allies Melted . | . . . Intel | -11 -10 -10 ------- Run | Yrd Mat Sub Active Infowar (turns) . | . . . Robot Analysis Total . | . . . Derelict Logs Recovered 2 | . . 2 Drone Launches . | . . . Drone Recoveries . | . . . Exploration | -11 -10 -10 ------------- Run | Yrd Mat Sub Turns Passed 1631 | 59 311 1261 Spaces Moved 787 | 47 160 580 Core 14 | 14 . . Treads . | . . . Legs 773 | 33 160 580 Wheels . | . . . Hover . | . . . Flight . | . . . Fastest Speed 50 | 50 190 190 Average Speed 189 | 99 190 196 Slowest Speed 260 | 120 190 260 Overloaded Moves . | . . . Propulsion Burnouts . | . . . Robots Hopped . | . . . Potential Cave-ins . | . . . Cave-ins Triggered . | . . . Exploration Rate (%) 17 | 4 24 25 Regions Visited 2 Branch Regions 1 Pre-discovered Areas 2 | . . 2 Known Exits Taken 2 | 1 1 . Unknown Exits Taken . | . . . Scrap Searched . | . . . Spaces Dug 41 | . . 41 Terrain Destroyed 140 | . . 140 Melee . | . . . Projectile . | . . . AOE 140 | . . 140 Terrain Rammed . | . . . Walls Destroyed . | . . . Machines Disabled . | . . . Actions | -11 -10 -10 --------- Run | Yrd Mat Sub Total 866 | 56 164 646 Wait 28 | . 1 27 Move 785 | 46 159 580 Hop . | . . . Pick Up 7 | 3 . 4 Fast Attach 7 | 7 . . Attach 1 | . 1 . Detach . | . . . Swap 1 | . . 1 Drop . | . . . Fire 35 | . 1 34 Melee . | . . . Ram . | . . . Kick 2 | . 2 . Crush . | . . . Escape Stasis . | . . . Rewire . | . . . Trap . | . . . Miscellaneous . | . . . Route ------- -11/Scrapyard -10/Materials -10/Subcaves History --------- Turn | Location | Event 2 | -11/Scrapyard | Met Revision 17 9 | -11/Scrapyard | Identified exit to Materials 9 | -11/Scrapyard | Discovered exit to Materials (range 14) 60 | -11/Scrapyard | Entered Materials 60 | -10/Materials | Evolved 1 slot: Power x1 309 | -10/Materials | Build established: Hacker-Mutant 362 | -10/Materials | Identified exit to Subcaves 362 | -10/Materials | Discovered exit to Subcaves (range 6) 371 | -10/Materials | Entered Subcaves 776 | -10/Subcaves | Learned location of Zion (-6) 1102 | -10/Subcaves | Learned location of Storage (-7) 1171 | -10/Subcaves | Shifting Twisted Machinery released Sub. Machine Gun 1186 | -10/Subcaves | Core integrity fell below 50% 1187 | -10/Subcaves | Shifting Twisted Machinery released Sub. Machine Gun 1595 | -10/Subcaves | Core integrity fell below 20% 1628 | -10/Subcaves | Ambushed by Subdweller buried in earth 1630 | -10/Subcaves | Ambushed by Subdweller buried in earth 1630 | -10/Subcaves | Ambushed by Subdweller buried in earth 1630 | -10/Subcaves | Ambushed by Subdweller buried in earth 1630 | -10/Subcaves | Ambushed by Subdweller buried in earth 1632 | -10/Subcaves | Destroyed self with Subdweller Shrapnel Launcher Last Messages --------------- Sub. Machine Gun falls loose from the Twisted Machinery. 01187_ Acquired 27 matter. 01290_ System corrupted: Matter fused (-10). 01292_ Subatomizers dissect the Disposable Heat Sink. 01437_ RD-EUK(u) tweaks Twisted Machinery. 01463_ Acquired 25 matter. 01478_ Aluminum Leg destroyed. 01478_ Destroyed Aluminum Leg. 01538_ System corrupted: Matter fused (-5). 01628_ Assault Rifle destroyed. 01628_ Destroyed Assault Rifle. 01629_ SE-944(R): "ARGHSUB!" 01630_ Aluminum Leg destroyed. 01630_ SE-944(R) destroyed. 01631_ 5K-GXL(R): "ARGHSUB!" 01631_ 0C-H07(R): "ARGHSUB!" 01631_ 1F-VVU(R): "HIDIE!" 01631_ QX-9N7(R): "ARGHSUB!" Map ----- +----------------------------------------------------+ | | | | | ?????????????????????????????????????????????????? | | ?????????????????????????????????????????????????? | | ?????????????????????????????????????????????????? | | ?????????????????????????????????????????????????? | | ?????????????????????????????????????????????????? | | ?????????????????????????????????????????????????? | | ?????????????????????????????????????????????????? | | ?????????????????????????????????????????????????? | | ?????????????????????????????????????????????????? | | ?????????????????????????????????????????????????? | | ?????????????????????????????????????????????????? | | ?????????????????????????????????????????????????? | | ?????????????????????????????????????????????????? | | ?????????????????????????????????????????????????? | | ???????????????????????????????????????????####### | | ???????????????????####?????????#######???## | | ???????????????????# ###?????## ##??# | | ???????????????????? ####?## #??# | | ????????????????#####;; ; ### #??# ### | | ??????????????###;;; R #### #??# #?? | | ??????###?????# ; &&!R #??# #### #?? | | ?????## #????## =%*R #??## ## #?? | | ??##?# #????# [R #???## ## #?? | | ?## ## ####### ; ; @ #????## & #?? | | ## """"" #;;; #?????## &% ##? | | # #### #?????## #### ## | | # "##??### #####???### #??## # | | # #"" "###????## #?????# #???# # | | # ##"" " "####?## #?????# ##??## ## | | # ## # ### #?????# #### #? | | # """" " ##???##### # ## | | """###### ##### | | #?### # ## | | "" ### # #?## | | ######" ### ## ##???# | | # ##????##" ;" ##?######### ##### | | ## #??????#" #"## ##?#####????# # | | ?########??## "#### ##?# ##???## # | | ?????## #?## ##?## &#?# ###??## | | ?????# ### #??## ### ##### | | ????## ""## ## #??## # ## | | ????# " ## ### #### #### ## "" | | ????# ### ##??## ### " | | ????# &## #????## ## | | ????## ###!%&& # # # # ##????## | | ?????# #?## %& ######## #?????# # | | ????## ##??### #?????## #?????## # | | ????# ##?????## ##???### ##?????## "" ## | +----------------------------------------------------+ Best States ------------- Heat Dissipation 25 Energy Generation 15 Energy Capacity 275 Matter Stores 300 Matter Capacity 300 Sight Range 16 Terrain Scan Density 10 Resistance: KI 35 Resistance: TH 35 Resistance: EX 35 Resistance: EM 35 Resistance: I 35 Resistance: S 35 Resistance: P 35 Evasion (%) 55 Targeting Accuracy 5 Offensive Hacking 20 Item Schematics ----------------- None Robot Schematics ------------------ None Fabricated ------------ Nothing Repaired ---------- Nothing Studied --------- None Alien Tech Used ----------------- None Achievements -------------- None Challenges ------------ None Game ------ Seed VariablePulsePendant Manual? 0 Play Time 00:10:54 Cumulative 2227.0 hours Start 2025.12.23 @ 19:43:52 End 2025.12.23 @ 19:50:32 Sessions 1 Manual Loads 0 Difficulty Explorer Special Mode None Game No. 1083 Rogue 62 Adventurer 0 Explorer 1021 Win Type - Total 11 Types 11/0/0/0/0/0/0/0/0/0 Lore% 64 Gallery% 72 Achievement% 47 Wizard Run 0 Options --------- Layout 1 ASCII 0 Keyboard 0 Movement Mouse Keybinds 0 Fullscreen 1 Font 48/Smallcaps Map View 50x35 Zoom Use 0% Tactical HUD 1 Map Filters NONE Filters NONE Steam 1 RUN: 9697d214-e3b6-4de3-a37d-706d381a7bf2